bitfinex-derivatives/quotes_SOLF0:USTF0_20240818
["timestamp","ask_amount","ask_price","bid_price","bid_amount"]
[1724019676119,0.05016618,145.57,145.55,18.48]
[1724019676915,4.42,145.64,145.55,21.9143]
[1724019677118,4.42,145.64,145.58,18.48]
[1724019677308,1.2752,145.65,145.6,18.48]
[1724019677921,1.2752,145.65,145.57,18.48]
[1724019678219,0.05074222,145.64,145.61,0.04661972]
[1724019678614,3.4327,145.62,145.61,0.04661972]
[1724019678819,4.42,145.62,145.55,1.2787]
[1724019679015,3.4333,145.6,145.56,18.48]
[1724019679719,4.42,145.62,145.56,18.48]
[1724019679918,0.04919848,145.59,145.57,0.04705738]
[1724019680315,3.4338,145.58,145.57,0.04705738]
[1724019681919,7.8538,145.58,145.57,0.04705738]
[1724019684422,3.4338,145.58,145.57,0.04705738]
[1724019690438,0.04919848,145.59,145.57,0.04705738]
[1724019691138,0.04919848,145.59,145.58,18.48]
[1724019693643,3.4327,145.63,145.58,21.9137]
[1724019693849,3.4327,145.63,145.6,18.48]
[1724019694143,4.46,145.64,145.58,18.48]
[1724019694642,5.6877,145.64,145.56,18.48]
[1724019694851,0.04455324,145.62,145.6,0.0510413]
[1724019695144,18.48,145.62,145.53,18.48]
[1724019695941,3.4341,145.57,145.53,18.48]
[1724019696248,3.4341,145.57,145.56,0.04592549]
[1724019697943,7.8938,145.58,145.56,0.04592549]
[1724019698342,4.46,145.58,145.56,0.04592549]
[1724019698545,0.04474326,145.59,145.56,0.04592549]
[1724019700049,3.47834326,145.59,145.56,0.04592549]
[1724019701349,3.4338,145.58,145.56,0.04592549]
[1724019701550,0.04474326,145.59,145.56,0.04592549]
[1724019702157,3.4339,145.57,145.56,0.04592549]
[1724019703553,6.01386651,145.58,145.5,1.2404]
[1724019703748,2.6424,145.58,145.47,18.48]
[1724019703942,18.48,145.57,145.47,21.9163]
[1724019704154,7.82597273,145.56,145.47,21.9163]
[1724019704546,7.82597273,145.56,145.46,27.8777]
[1724019704749,3.4355,145.51,145.5,0.04481678]
[1724019705748,4.46,145.51,145.41,23.1]
[1724019706149,3.4369,145.45,145.41,23.1]
[1724019706854,3.48514187,145.44,145.42,0.04799323]
[1724019708253,3.4372,145.43,145.42,0.04799323]
[1724019711156,0.04814187,145.44,145.42,0.04799323]
[1724019711458,0.04814187,145.44,145.43,23.1]
[1724019711656,3.48514187,145.44,145.43,23.1]
[1724019711859,0.04814187,145.44,145.43,26.5372]
[1724019712258,3.4366,145.46,145.43,26.5372]
[1724019712447,4.46,145.47,145.43,26.5372]
[1724019712652,4.46,145.5,145.43,26.5372]
[1724019712853,3.4366,145.46,145.43,26.5372]
[1724019713053,23.1,145.53,145.43,23.1]
[1724019713255,23.1,145.53,145.4,5.8012]
[1724019713256,4.46,145.49,145.41,23.1]
[1724019713560,4.50427685,145.49,145.46,0.04840312]
[1724019713759,1.2668,145.48,145.4,4.779]
[1724019713957,3.4371,145.44,145.4,4.779]
[1724019714655,3.4371,145.44,145.41,0.04671824]
[1724019714855,0.04971467,145.43,145.41,0.04671824]
[1724019718858,0.04971467,145.43,145.41,23.14671824]
[1724019719961,0.04971467,145.43,145.42,3.4375]
[1724019720558,0.04971467,145.43,145.41,26.58431824]
[1724019721667,0.04971467,145.43,145.42,3.4375]
[1724019721852,23.1,145.53,145.41,23.14671824]
[1724019722056,4.44,145.51,145.45,3.4366]
[1724019722264,4.44,145.51,145.46,23.1]
[1724019723057,0.05219118,145.5,145.47,0.04429561]
[1724019723458,3.436,145.48,145.47,0.04429561]
[1724019725258,0.05219118,145.5,145.47,0.04429561]
[1724019725858,0.05219118,145.5,145.47,3.48049561]
[1724019726058,0.05219118,145.5,145.48,23.1]
[1724019726256,4.44,145.55,145.48,24.4611]
[1724019726455,3.4347,145.54,145.5,23.1]
[1724019727367,0.04731368,145.53,145.51,0.04877066]
[1724019727866,3.4351,145.52,145.51,0.04877066]
[1724019730165,3.48241368,145.53,145.51,0.04877066]
[1724019735267,3.4351,145.52,145.51,0.04877066]
[1724019736359,0.04731368,145.53,145.43,27.54]
[1724019736759,3.4358,145.5,145.45,3.4366]
[1724019737159,3.4358,145.5,145.46,0.04808207]
[1724019737360,0.04343465,145.49,145.46,0.04808207]
[1724019737559,3.47933465,145.49,145.46,0.04808207]
[1724019739169,0.04343465,145.49,145.46,0.04808207]
[1724019741168,3.4362,145.48,145.46,0.04808207]
[1724019741868,3.436,145.48,145.46,0.04808207]
[1724019742264,0.04343465,145.49,145.46,0.04808207]
[1724019742675,3.436,145.48,145.46,0.04808207]
[1724019742873,0.04343465,145.49,145.46,0.04808207]
[1724019743679,3.436,145.48,145.46,0.04808207]
[1724019744681,3.4363,145.47,145.46,0.04808207]
[1724019748277,0.04343465,145.49,145.46,0.04808207]
[1724019748478,0.04343465,145.49,145.47,18.47]
[1724019749587,3.47923465,145.49,145.47,18.47]
[1724019749784,0.04343465,145.49,145.46,0.04808207]
[1724019750187,3.436,145.48,145.46,0.04808207]
[1724019753091,3.4363,145.47,145.46,0.04808207]
[1724019753789,0.04343465,145.49,145.46,0.04808207]
[1724019753990,0.04343465,145.49,145.47,23.11]
[1724019754288,0.04343465,145.49,145.48,3.436]
[1724019754480,4.44,145.55,145.47,23.11]
[1724019754799,3.435,145.53,145.5,26.5454]
[1724019755090,4.44,145.55,145.5,23.11]
[1724019755286,4.44,145.58,145.5,23.11]
[1724019755688,3.4348,145.54,145.52,0.04745309]
[1724019755991,0.04594801,145.55,145.52,0.04745309]
[1724019756388,3.4349,145.53,145.52,0.04745309]
[1724019758692,48.18,145.53,145.4,23.11]
[1724019758894,1.2853,145.52,145.4,28.8508]
[1724019759092,23.11,145.51,145.41,3.4376]
[1724019759390,3.45236135,145.5,145.4,24.4308]
[1724019759590,3.4369,145.45,145.4,27.8686]
[1724019759983,3.4369,145.45,145.41,0.05034929]
[1724019760188,3.4369,145.45,145.41,3.48784929]
[1724019760399,0.05139705,145.46,145.41,0.05034929]
[1724019760790,0.05139705,145.46,145.42,3.4375]
[1724019760985,3.4368,145.45,145.41,0.05034929]
[1724019761189,3.4368,145.45,145.41,3.48794929]
[1724019762291,3.4371,145.44,145.41,0.05034929]
[1724019763891,3.4371,145.44,145.41,3.48804929]
[1724019765799,3.437,145.45,145.42,3.4374]
[1724019765997,0.05139705,145.46,145.41,0.05034929]
[1724019766695,0.05139705,145.46,145.43,23.11]
[1724019766998,3.48789705,145.46,145.43,26.547]
[1724019767700,0.05139705,145.46,145.44,3.437]
[1724019767993,0.05139705,145.46,145.43,23.11]
[1724019768591,3.48789705,145.46,145.43,26.5471]
[1724019769596,0.05139705,145.46,145.44,3.4369]
[1724019773598,0.05139705,145.46,145.45,3.4367]
[1724019773802,0.05139705,145.46,145.45,21.8967]
[1724019776005,5.7253,145.52,145.47,3.4362]
[1724019776204,3.4358,145.5,145.47,3.4362]
[1724019776597,3.4358,145.5,145.47,21.8962]
[1724019777203,3.4354,145.51,145.48,3.436]
[1724019777503,3.4354,145.51,145.49,18.46]
[1724019777504,0.05252157,145.5,145.49,18.46]
[1724019778511,0.05252157,145.5,145.49,21.8958]
[1724019779506,1.3114,145.57,145.49,18.46]
[1724019779709,1.3114,145.57,145.52,18.46]
[1724019780109,4.42,145.61,145.53,18.46]
[1724019780508,3.4338,145.58,145.55,18.46]
[1724019780715,0.05127646,145.58,145.56,0.04768499]
[1724019781513,0.05127646,145.58,145.56,3.48178499]
[1724019781912,0.05127646,145.58,145.56,0.04768499]
[1724019782113,0.05127646,145.58,145.57,3.4339]
[1724019782711,0.05127646,145.58,145.56,0.04768499]
[1724019782712,0.05127646,145.58,145.56,3.48168499]
[1724019783815,0.05127646,145.58,145.57,3.4339]
[1724019785312,0.05127646,145.58,145.56,0.04768499]
[1724019785313,2.5411,145.63,145.58,3.4335]
[1724019786016,3.4331,145.61,145.58,3.4335]
[1724019786410,0.04638416,145.61,145.59,3.4334]
[1724019787513,3.47938416,145.61,145.58,3.47970323]
[1724019787712,0.04638416,145.61,145.58,0.04610323]
[1724019788121,3.4333,145.6,145.58,0.04610323]
[1724019790715,3.4334,145.59,145.58,0.04610323]
[1724019790914,0.04638416,145.61,145.58,0.04610323]
[1724019792316,3.47948416,145.61,145.58,3.47960323]
[1724019792716,0.04638416,145.61,145.58,0.04610323]
[1724019792916,0.04638416,145.61,145.59,3.4332]
[1724019793617,0.04638416,145.61,145.6,3.4332]
[1724019798215,0.04638416,145.61,145.58,0.04610323]
[1724019799322,3.4334,145.6,145.58,3.47980323]
[1724019799722,3.4334,145.6,145.58,0.04610323]
[1724019800114,0.04638416,145.61,145.59,23.07]
[1724019800423,1.3134,145.66,145.6,23.07]
[1724019801217,3.4327,145.63,145.62,0.04537744]
[1724019803920,3.48264231,145.64,145.62,0.04537744]
[1724019804118,0.05024231,145.64,145.62,0.04537744]
[1724019804322,0.05024231,145.64,145.62,3.47797744]
[1724019804525,0.05024231,145.64,145.62,21.91797744]
[1724019806522,0.05024231,145.64,145.62,0.04537744]
[1724019807327,3.48264231,145.64,145.62,0.04537744]
[1724019807534,0.05024231,145.64,145.62,0.04537744]
[1724019808925,3.48254231,145.64,145.62,0.04537744]
[1724019812427,3.4325,145.63,145.62,0.04537744]
[1724019812631,0.05024231,145.64,145.56,22.82]
[1724019812827,1.3134,145.66,145.56,22.82]
[1724019813630,3.4329,145.62,145.6,0.05125807]
[1724019813835,3.4784678,145.62,145.6,0.05125807]
[1724019816428,3.433,145.61,145.6,0.05125807]
[1724019821838,18.44,145.61,145.53,1.272]
[1724019822038,18.44,145.55,145.48,1.2466]
[1724019822338,18.44,145.55,145.43,4.38]
[1724019822339,18.44,145.53,145.43,22.82]
[1724019822540,18.44,145.53,145.43,26.21458193]
[1724019822933,0.04950832,145.49,145.47,0.0479755]
[1724019824137,3.436,145.48,145.47,0.0479755]
[1724019827142,2.5675,145.48,145.37,24.157]
[1724019827340,18.44,145.46,145.38,3.4383]
[1724019827541,18.44,145.46,145.37,19.777]
[1724019827842,1.2352,145.47,145.38,3.44297662]
[1724019828043,0.04650532,145.43,145.4,0.05152977]
[1724019828440,3.48380532,145.43,145.4,0.05152977]
[1724019828638,0.04650532,145.43,145.41,18.44]
[1724019828847,6.9475,145.48,145.41,18.44]
[1724019829140,6.9475,145.48,145.44,18.44]
[1724019829542,6.9475,145.48,145.42,18.44]
[1724019829935,6.9475,145.48,145.44,0.043884]
[1724019830139,0.05110962,145.46,145.44,0.043884]
[1724019830846,3.4369,145.45,145.44,0.043884]
[1724019833947,3.48780962,145.46,145.44,18.483884]
[1724019834147,0.05110962,145.46,145.44,18.483884]
[1724019834546,3.48760962,145.46,145.44,18.483884]
[1724019836645,0.05110962,145.46,145.44,18.483884]
[1724019836949,0.05110962,145.46,145.45,18.44]
[1724019838746,1.2639,145.52,145.45,21.8767]
[1724019838747,5.6439,145.52,145.45,21.8767]
[1724019839045,4.38,145.55,145.5,18.44]
[1724019839248,3.435,145.53,145.5,18.44]
[1724019839440,4.38,145.55,145.5,18.44]
[1724019839646,4.38,145.55,145.5,18.49047754]
[1724019839647,0.04805214,145.53,145.5,18.49047754]
[1724019840854,3.48305214,145.53,145.5,18.49047754]
[1724019841346,0.04805214,145.53,145.5,0.05047754]
[1724019841951,3.4352,145.52,145.5,0.05047754]
[1724019842444,3.4353,145.51,145.5,0.05047754]
[1724019844452,18.48805214,145.53,145.43,5.7762]
[1724019844754,1.2458,145.52,145.43,24.2162]
[1724019844945,1.2458,145.52,145.43,27.6534]
[1724019845146,3.4364,145.47,145.43,27.6534]
[1724019845651,0.05220052,145.46,145.44,0.0502499]
[1724019845955,0.05220052,145.46,145.45,18.44]
[1724019848053,0.05220052,145.46,145.44,3.4870499]
[1724019848249,0.05220052,145.46,145.44,0.0502499]
[1724019848650,3.4367,145.45,145.44,0.0502499]
[1724019848857,0.05220052,145.46,145.44,0.0502499]
[1724019849044,0.05220052,145.46,145.44,18.4902499]
[1724019851559,3.48870052,145.46,145.44,18.4902499]
[1724019853450,0.05220052,145.46,145.44,18.4902499]
[1724019854760,3.4367,145.45,145.44,18.4902499]
[1724019854961,0.05220052,145.46,145.44,0.0502499]
[1724019855353,3.48880052,145.46,145.44,0.0502499]
[1724019855552,0.05220052,145.46,145.39,22.86]
[1724019856050,0.05220052,145.46,145.41,18.44]
[1724019856553,3.4373,145.43,145.41,18.44]
[1724019856750,3.4373,145.43,145.42,0.0483804]
[1724019859465,22.86,145.45,145.34,4.42]
[1724019859754,1.3416,145.44,145.35,18.44]
[1724019860153,1.3416,145.44,145.35,3.439]
[1724019860551,3.4381,145.4,145.39,0.04751353]
[1724019868559,3.4378,145.41,145.39,0.04751353]
[1724019868760,0.05160913,145.42,145.39,0.04751353]
[1724019869268,3.48920913,145.42,145.39,0.04751353]
[1724019869463,0.05160913,145.42,145.39,0.04751353]
[1724019870968,3.4377,145.41,145.39,0.04751353]
[1724019872163,3.48910913,145.42,145.39,0.04751353]
[1724019872372,0.05160913,145.42,145.39,0.04751353]
[1724019872969,0.05160913,145.42,145.39,3.48551353]
[1724019873872,0.05160913,145.42,145.39,0.04751353]
[1724019874269,3.4379,145.4,145.39,0.04751353]
[1724019874972,3.4378,145.41,145.39,0.04751353]
[1724019884275,3.48910913,145.42,145.39,7.43751353]
[1724019884472,0.05160913,145.42,145.41,7.39]
[1724019885880,3.4379,145.4,145.39,0.04751353]
[1724019886082,0.05160913,145.42,145.39,0.04751353]
[1724019886483,3.4378,145.41,145.39,0.04751353]
[1724019891088,0.05160913,145.42,145.39,0.04751353]
[1724019891682,3.4379,145.4,145.39,0.04751353]
[1724019892189,3.4385,145.38,145.34,3.4391]
[1724019892387,7.39,145.4,145.33,7.39]
[1724019892791,3.4388,145.37,145.33,10.8294]
[1724019893394,0.05002211,145.36,145.34,0.05109986]
[1724019894988,3.48892211,145.36,145.34,0.05109986]
[1724019895495,0.05002211,145.36,145.34,3.49029986]
[1724019895692,0.05002211,145.36,145.34,10.88029986]
[1724019895898,0.05002211,145.36,145.34,7.44109986]
[1724019896391,3.4391,145.35,145.34,0.05109986]
[1724019900097,0.05002211,145.36,145.34,7.44109986]
[1724019900696,0.05002211,145.36,145.35,3.4391]
[1724019901801,0.05002211,145.36,145.34,10.88029986]
[1724019904109,0.05002211,145.36,145.35,3.4391]
[1724019906109,0.05002211,145.36,145.34,3.49029986]
[1724019906300,0.05002211,145.36,145.34,10.88029986]
[1724019907306,3.48892211,145.36,145.34,10.88029986]
[1724019907509,3.48892211,145.36,145.34,7.44109986]
[1724019907809,0.05002211,145.36,145.34,0.05109986]
[1724019908008,3.4391,145.35,145.34,0.05109986]
[1724019911115,7.44002211,145.36,145.29,7.39]
[1724019911315,0.05002211,145.36,145.31,7.39]
[1724019911505,0.05002211,145.36,145.32,7.39]
[1724019912105,0.05002211,145.36,145.33,0.05141454]
[1724019913117,3.4393,145.34,145.33,0.05141454]
[1724019913512,0.05002211,145.36,145.33,0.05141454]
[1724019914406,3.4392,145.35,145.33,0.05141454]
[1724019915009,3.48902211,145.36,145.34,7.39]
[1724019915915,1.3168,145.42,145.35,7.39]
[1724019916211,1.3168,145.42,145.38,7.39]
[1724019916418,4.708,145.41,145.38,7.39]
[1724019916812,1.2701,145.41,145.38,7.39]
[1724019917419,4.75382769,145.41,145.38,7.43864627]
[1724019917811,7.39,145.4,145.38,0.04864627]
[1724019918016,7.39,145.4,145.33,1.3144]
[1724019918017,7.39,145.4,145.33,8.7044]
[1724019918221,3.4386,145.38,145.33,8.7044]
[1724019918420,7.39,145.4,145.33,1.3144]
[1724019918617,7.39,145.39,145.33,8.7044]
[1724019918819,3.439,145.36,145.33,7.39]
[1724019919313,3.48333685,145.36,145.33,7.44294201]
[1724019920412,3.4393,145.35,145.33,0.05294201]
[1724019921027,3.4393,145.34,145.33,0.05294201]
[1724019926123,24.156,145.35,145.26,4.34]
[1724019926424,1.2983,145.34,145.25,18.5]
[1724019926618,1.2983,145.34,145.25,21.99651379]
[1724019926820,18.5,145.33,145.2,1.1183]
[1724019927123,4.80458354,145.32,145.24,21.9416]
[1724019927320,0.05201765,145.28,145.25,0.04462496]
[1724019927720,3.49281765,145.28,145.25,0.04462496]
[1724019928828,3.49281765,145.28,145.25,3.48602496]
[1724019929123,0.05201765,145.28,145.26,18.5]
[1724019930027,0.05201765,145.28,145.27,3.441]
[1724019932126,5.6383,145.34,145.3,3.4402]
[1724019932329,4.34,145.34,145.3,3.4402]
[1724019932631,3.4397,145.33,145.3,3.4402]
[1724019933423,3.48715504,145.33,145.3,3.48495354]
[1724019934121,3.44,145.32,145.3,0.04475354]
[1724019935919,3.48715504,145.33,145.3,0.04475354]
[1724019936325,3.48715504,145.33,145.3,3.48495354]
[1724019937433,0.04745504,145.33,145.3,3.48495354]
[1724019938232,0.04745504,145.33,145.3,0.04475354]
[1724019938638,3.44,145.32,145.3,0.04475354]
[1724019939433,0.04745504,145.33,145.3,0.04475354]
[1724019941037,0.04745504,145.33,145.31,18.5]
[1724019941333,0.04745504,145.33,145.32,3.4398]
[1724019945731,1.3609,145.38,145.35,3.439]
[1724019946234,1.284,145.4,145.36,3.4387]
[1724019946939,1.284,145.4,145.37,3.48722576]
[1724019946940,0.04851365,145.39,145.37,3.48722576]
[1724019947238,0.04851365,145.39,145.37,0.04862576]
[1724019947631,3.48671365,145.39,145.37,0.04862576]
[1724019948031,0.04851365,145.39,145.37,0.04862576]
[1724019948738,3.4384,145.38,145.37,0.04862576]
[1724019952239,3.48681365,145.39,145.37,3.48722576]
[1724019952937,5.6056,145.46,145.37,18.54862576]
[1724019953145,5.6056,145.46,145.39,18.5]
[1724019953338,3.437,145.44,145.41,3.4375]
[1724019953644,5.6056,145.46,145.39,21.90980005]
[1724019954140,51.64808877,145.53,145.42,18.5]
[1724019954341,6.01657283,145.52,145.42,18.5]
[1724019954547,3.4362,145.48,145.44,3.4368]
[1724019955047,2.6415,145.52,145.44,18.5]
[1724019955235,3.4359,145.49,145.45,3.4366]
[1724019955434,3.48005395,145.49,145.47,0.04770613]
[1724019956046,3.436,145.48,145.47,0.04770613]
[1724019957641,3.48015395,145.49,145.47,0.04770613]
[1724019958039,0.04415395,145.49,145.47,0.04770613]
[1724019958434,3.436,145.48,145.47,0.04770613]
[1724019960344,4.38415395,145.49,145.39,26.24980005]
[1724019960649,3.4365,145.46,145.39,26.24980005]
[1724019961248,0.04552616,145.44,145.41,3.48294462]
[1724019961846,0.04552616,145.44,145.42,3.4374]
[1724019962048,3.48252616,145.44,145.41,0.04544462]
[1724019962345,0.04552616,145.44,145.41,0.04544462]
[1724019963346,0.04552616,145.44,145.41,3.48294462]
[1724019963850,0.04552616,145.44,145.41,21.98294462]
[1724019964348,3.48252616,145.44,145.41,21.98294462]
[1724019964554,0.04552616,145.44,145.41,18.54544462]
[1724019965053,3.4373,145.43,145.41,18.54544462]
[1724019966448,3.4375,145.42,145.41,0.04544462]
[1724019967753,0.04552616,145.44,145.41,0.04544462]
[1724019968555,3.4375,145.42,145.41,0.04544462]
[1724019974663,25.4951,145.45,145.35,18.5]
[1724019974963,1.2632,145.44,145.35,18.5]
[1724019975159,3.4384,145.38,145.35,21.9389]
[1724019975663,3.48429141,145.38,145.35,21.99106229]
[1724019975965,0.04589141,145.38,145.35,18.55216229]
[1724019976163,0.04589141,145.38,145.35,0.05216229]
[1724019976562,3.4389,145.36,145.35,0.05216229]
[1724019977458,3.4389,145.36,145.35,7.45216229]
[1724019978459,3.4389,145.36,145.35,0.05216229]
[1724019983267,3.4388,145.37,145.35,0.05216229]
[1724019985066,0.04589141,145.38,145.35,0.05216229]
[1724019985666,3.4388,145.37,145.35,0.05216229]
[1724019986263,0.04589141,145.38,145.35,18.54216229]
[1724019986767,0.04589141,145.38,145.36,3.4389]
[1724019986957,0.04589141,145.38,145.35,18.54216229]
[1724019987163,0.04589141,145.38,145.37,18.49]
[1724019987358,0.04589141,145.38,145.37,21.9286]
[1724019987563,4.6645,145.42,145.37,18.49]
[1724019987763,1.2269,145.42,145.39,18.49]
[1724019988366,1.2269,145.42,145.37,18.49]
[1724019989070,3.4381,145.4,145.38,0.04670076]
[1724019991563,3.48457843,145.41,145.38,3.48510076]
[1724019994076,0.04677843,145.41,145.39,18.49]
[1724019994377,2.5727,145.48,145.4,18.49]
[1724019994581,2.5727,145.48,145.43,18.49]
[1724019994777,3.4368,145.45,145.43,18.49]
[1724019995276,3.48745099,145.45,145.43,18.53356045]
[1724019995478,0.05065099,145.45,145.43,21.97076045]
[1724019995674,0.05065099,145.45,145.43,18.53356045]
[1724019996776,0.05065099,145.45,145.44,3.437]
[1724020001282,3.4361,145.48,145.45,3.4366]
[1724020001481,3.4361,145.48,145.46,18.49]
[1724020002180,3.48198455,145.48,145.46,18.54156949]
[1724020002372,3.48198455,145.48,145.46,0.05156949]
[1724020002580,3.48198455,145.48,145.46,7.44156949]
[1724020002975,3.4363,145.47,145.46,7.44156949]
[1724020003580,3.4363,145.47,145.46,0.05156949]
[1724020005681,0.04588455,145.48,145.35,1.4487]
[1724020005882,7.39,145.49,145.42,7.39]
[1724020006984,3.4367,145.45,145.44,0.04924317]
[1724020008190,7.39,145.45,145.3,3.43930649]
[1724020008380,7.39,145.43,145.36,7.39]
[1724020008582,3.4385,145.38,145.36,7.39]
[1724020009187,3.48237912,145.38,145.36,7.43949782]
[1724020010491,3.48237912,145.38,145.36,0.04949782]
[1724020012188,3.4386,145.37,145.36,0.04949782]
[1724020024296,0.04387912,145.38,145.36,0.04949782]
[1724020024701,0.04387912,145.38,145.37,18.49]
[1724020025801,0.04387912,145.38,145.36,18.53949782]
[1724020026208,3.4386,145.37,145.36,18.53949782]
[1724020027701,3.48237912,145.38,145.36,18.53949782]
[1724020027900,0.04387912,145.38,145.36,18.53949782]
[1724020029102,3.4386,145.37,145.36,18.53949782]
[1724020029303,0.04387912,145.38,145.36,18.53949782]
[1724020030093,3.4386,145.37,145.36,18.53949782]
[1724020031899,3.4386,145.37,145.36,0.04949782]
[1724020032196,0.04387912,145.38,145.31,18.49]
[1724020032398,22.73,145.41,145.31,18.49]
[1724020033405,0.04666679,145.37,145.35,0.04382637]
[1724020033993,3.4389,145.36,145.35,0.04382637]
[1724020037307,0.04666679,145.37,145.3,3.47261315]
[1724020037308,3.4401,145.31,145.3,3.47261315]
[1724020037508,18.49,145.35,145.24,1.3158]
[1724020037710,18.49,145.35,145.25,18.49]
[1724020037909,3.4404,145.3,145.26,3.441]
[1724020038105,3.4404,145.3,145.25,18.49]
[1724020038512,0.05039349,145.29,145.27,3.441]
[1724020038712,0.05039349,145.29,145.27,21.931]
[1724020038909,3.4399,145.32,145.29,3.4404]
[1724020039217,4.24,145.36,145.29,18.49]
[1724020039415,3.4395,145.34,145.29,18.49]
[1724020039713,3.4395,145.34,145.32,18.49]
[1724020040113,3.49179032,145.34,145.32,18.53380459]
[1724020040417,3.4396,145.33,145.32,18.53380459]
[1724020041507,3.49169032,145.34,145.32,18.53380459]
[1724020043324,3.4396,145.33,145.32,0.04380459]
[1724020044627,3.49169032,145.34,145.32,0.04380459]
[1724020044827,2.6583,145.4,145.33,18.49]
[1724020045014,5.5898,145.4,145.36,18.49]
[1724020045214,3.4386,145.37,145.36,18.49]
[1724020046728,3.4386,145.37,145.35,0.04973199]
[1724020047428,3.48571757,145.38,145.35,0.04973199]
[1724020049223,3.4387,145.37,145.35,0.04973199]
[1724020050127,0.04721757,145.38,145.35,3.48863199]
[1724020050322,0.04721757,145.38,145.36,18.49]
[1724020052733,0.04721757,145.38,145.37,3.4386]
[1724020052925,6.8313,145.44,145.36,18.49]
[1724020053127,6.8313,145.44,145.38,18.49]
[1724020053835,3.4378,145.41,145.38,21.9283]
[1724020054027,3.4378,145.41,145.4,0.05037871]
[1724020058936,0.04654497,145.42,145.34,18.49]
[1724020058937,18.49,145.42,145.34,18.49]
[1724020059433,18.49,145.42,145.34,21.9293]
[1724020059832,3.4388,145.37,145.34,21.9293]
[1724020060229,3.4388,145.37,145.34,21.97955547]
[1724020061239,3.4391,145.35,145.34,0.05025547]
[1724020061439,18.49,145.42,145.34,0.05025547]
[1724020061833,3.439,145.36,145.34,0.05025547]
[1724020062439,3.4391,145.35,145.34,0.05025547]
[1724020062835,0.05040758,145.36,145.34,0.05025547]
[1724020063439,3.48950758,145.36,145.34,0.05025547]
[1724020066139,3.4391,145.35,145.34,0.05025547]
[1724020066333,0.05040758,145.36,145.28,18.49]
[1724020066539,18.49,145.38,145.28,18.49]
[1724020066738,19.8343,145.38,145.28,18.49]
[1724020067337,0.0466389,145.34,145.32,0.05265902]
[1724020067738,3.4397,145.33,145.32,0.05265902]
[1724020071046,3.4403,145.31,145.27,22.77]
[1724020071445,3.4403,145.31,145.27,26.2108]
[1724020072139,3.49015687,145.3,145.28,0.04691732]
[1724020072342,3.49021531,145.3,145.28,0.04691732]
[1724020073652,3.4405,145.29,145.28,0.04691732]
[1724020079852,0.04991531,145.3,145.28,7.43691732]
[1724020080545,4.28,145.35,145.28,7.39]
[1724020080850,3.4398,145.32,145.31,7.39]
[1724020081841,3.4398,145.32,145.3,0.04596169]
[1724020082047,3.4398,145.32,145.3,7.43596169]
[1724020082447,3.4398,145.32,145.3,0.04596169]
[1724020084959,3.48665076,145.33,145.3,3.48616169]
[1724020085359,0.04705076,145.33,145.3,0.04596169]
[1724020086155,0.04705076,145.33,145.31,21.9399]
[1724020088158,3.48665076,145.33,145.31,18.5]
[1724020089564,3.4398,145.32,145.31,18.5]
[1724020089864,0.04705076,145.33,145.3,0.04596169]
[1724020090557,3.4398,145.32,145.3,0.04596169]
[1724020090860,0.04705076,145.33,145.3,0.04596169]
[1724020091960,3.44,145.32,145.3,0.04596169]
[1724020095752,3.48675076,145.33,145.3,18.54596169]
[1724020096063,0.04705076,145.33,145.3,18.54596169]
[1724020096259,0.04705076,145.33,145.31,3.4399]
[1724020098052,3.48665076,145.33,145.3,21.98616169]
[1724020098855,3.48665076,145.33,145.3,22.01061856]
[1724020098856,0.04705076,145.33,145.3,22.01061856]
[1724020099264,0.04705076,145.33,145.3,26.23061856]
[1724020099760,0.04705076,145.33,145.32,3.4398]
[1724020100365,0.04705076,145.33,145.3,26.23061856]
[1724020100562,0.04705076,145.33,145.3,22.76596169]
[1724020100762,0.04705076,145.33,145.3,26.25259943]
[1724020101062,3.48675076,145.33,145.3,29.69279943]
[1724020101767,3.48675076,145.33,145.3,26.20616169]
[1724020102271,0.04705076,145.33,145.3,26.1935526]
[1724020103865,0.04705076,145.33,145.31,3.4399]